fUST/lending_fUST_20260118
["ID","MTS","AMOUNT","RATE_DAILY","PERIOD"]
[402452866,1768680147136,193.05,8.392e-05,2]
[402452867,1768680147575,231.66,8.728e-05,2]
[402452868,1768680155606,-210.47004235,9.063e-05,2]
[402452877,1768680220130,171.36,8.726e-05,2]
[402452878,1768680236652,-199.92,9.061e-05,2]
[402452879,1768680236683,-228.48,9.397e-05,2]
[402452880,1768680236715,-257.04,9.732e-05,2]
[402452881,1768680236747,-285.6,0.00010068,2]
[402452882,1768680236780,-3057.93,0.00011101,2]
[402452883,1768680242599,-1942.07,0.00011101,2]
[402452884,1768680242628,-452.11800909,0.00011213,2]
[402452885,1768680242656,-282.818,0.00012487,2]
[402452886,1768680242684,-1808.47203636,0.00012557,2]
[402452887,1768680242714,-414.09741654,0.00012614,2]
[402452888,1768680248677,-200.85907602,0.00012614,2]
[402452889,1768680248708,-300.0,0.00012739,2]
[402452890,1768680248738,-500.0,0.0001274,2]
[402452891,1768680248766,-500.0,0.0001274,2]
[402452892,1768680248795,-500.0,0.0001274,2]
[402452893,1768680248823,-322.5,0.0001274,2]
[402452894,1768680248852,-500.0,0.0001274,2]
[402452895,1768680248881,-500.0,0.0001274,2]
[402452896,1768680287900,1297.0927257,0.00027397,120]
[402452900,1768680480182,214.51,1.998e-05,2]
[402452902,1768680525401,-5000.0,0.00012613,2]
[402452903,1768680531130,-176.85055311,0.0001274,2]
[402452904,1768680537045,5000.0,0.00012741,2]
[402452923,1768680632254,-2897.5736624,0.00011712,2]
[402452925,1768680632263,-5000.0,0.00012514,2]
[402452927,1768680632273,-300.0,0.0001264,2]
[402452929,1768680632283,-513.0,0.0001264,2]
[402452931,1768680632293,-64293.55713458,0.00012641,2]
[402452934,1768680632304,-1400.08699331,0.00012641,2]
[402452936,1768680632315,-9619.91025749,0.00012641,2]
[402452938,1768680632326,-890.18,0.00012641,2]
[402452940,1768680632337,-5460.86917965,0.00012641,2]
[402453068,1768680638942,-84257.03998901,0.00012641,2]
[402453071,1768680638962,-834078.35644596,0.00012641,2]
[402453073,1768680638972,-33219.81782579,0.00012741,2]
[402453075,1768680638981,-500.0,0.00012741,2]
[402453077,1768680638991,-500.0,0.00012741,2]
[402453079,1768680639000,-500.0,0.00012741,2]
[402453081,1768680639009,-500.0,0.00012741,2]
[402453083,1768680639019,-500.0,0.00012741,2]
[402453085,1768680639029,-500.0,0.00012741,2]
[402453087,1768680639038,-500.0,0.00012741,2]
[402453089,1768680639047,-500.0,0.00012741,2]
[402453091,1768680639056,-286.68018721,0.00012741,2]
[402453093,1768680639066,-500.0,0.00012741,2]
[402453095,1768680639076,-500.0,0.00012741,2]
[402453097,1768680639085,-500.0,0.00012741,2]
[402453100,1768680639106,-500.0,0.00012741,2]
[402453102,1768680639117,-500.0,0.00012741,2]
[402453104,1768680639128,-405.05265112,0.00012741,2]
[402453107,1768680639138,-1000.0,0.00012742,2]
[402453109,1768680639148,-644.821209,0.00012742,2]
[402453111,1768680639158,-500.0,0.00013273,2]
[402453113,1768680639169,-500.0,0.00013273,2]
[402453115,1768680639178,-500.0,0.00013273,2]
[402453117,1768680639189,-500.0,0.00013273,2]
[402453119,1768680639199,-500.0,0.00013273,2]
[402453121,1768680639210,-500.0,0.00013273,2]
[402453123,1768680639220,-500.0,0.00013273,2]
[402453125,1768680639230,-601.16084877,0.00013273,2]
[402453127,1768680639241,-500.0,0.00013273,2]
[402453129,1768680639251,-500.0,0.00013273,2]
[402453131,1768680639261,-300.0,0.00013673,2]
[402453132,1768680639271,-170.953313,0.00013699,2]
[402453134,1768680639281,-500.0,0.00013699,2]
[402453136,1768680639291,-500.0,0.00013699,2]
[402453138,1768680639301,-500.0,0.00013699,2]
[402453140,1768680639311,-500.0,0.00013699,2]
[402453142,1768680639321,-500.0,0.00013699,2]
[402453144,1768680639330,-500.0,0.00013699,2]
[402453146,1768680639340,-250.52997418,0.00013699,2]
[402453148,1768680639350,-1000.0,0.00013821,2]
[402453150,1768680639359,-1000.0,0.00013821,2]
[402453152,1768680639369,-1000.0,0.00013821,2]
[402453154,1768680639379,-562.42957287,0.00013821,2]
[402453156,1768680639389,-300.0,0.00013867,2]
[402453158,1768680639399,-90348.55459878,0.00014006,2]
[402453160,1768680639409,-157.0359237,0.00014166,2]
[402453162,1768680639420,-600.0,0.00014221,2]
[402453164,1768680639430,-1000.0,0.00014247,2]
[402453166,1768680639439,-1000.0,0.00014247,2]
[402453168,1768680639448,-1000.0,0.00014247,2]
[402453170,1768680639458,-1000.0,0.00014247,2]
[402453172,1768680639467,-1000.0,0.00014247,2]
[402453174,1768680639476,-500.43334725,0.00014247,2]
[402453176,1768680639486,-1500.0,0.00014368,2]
[402453178,1768680639495,-1500.0,0.00014368,2]
[402453180,1768680639504,-1500.0,0.00014368,2]
[402453182,1768680639514,-5000.0,0.0001451,2]
[402453184,1768680639524,-208.68365267,0.0001474,2]
[402453186,1768680639534,-900.0,0.00014768,2]
[402453188,1768680639544,-1500.0,0.00014795,2]
[402453190,1768680639553,-1500.0,0.00014795,2]
[402453193,1768680639563,-1500.0,0.00014795,2]
[402453195,1768680639573,-1500.0,0.00014795,2]
[402453196,1768680639583,-502.31117812,0.00014795,2]
[402453198,1768680639592,-1000.0,0.0001484,2]
[402453200,1768680639602,-2000.0,0.00014916,2]
[402453202,1768680639612,-2000.0,0.00014916,2]
[402453204,1768680639623,-160.08,0.00015,2]
[402453206,1768680639632,-10000.0,0.00015057,2]
[402453208,1768680639642,-1308.98,0.00015057,2]
[402453210,1768680639652,-288.26114,0.00015068,2]
[402453213,1768680639662,-10000.0,0.00015114,2]
[402453215,1768680639672,-10000.0,0.00015114,2]
[402453217,1768680639683,-10000.0,0.00015114,2]
[402453218,1768680639692,-2317.5,0.00015114,2]
[402453221,1768680639703,-1200.0,0.00015316,2]
[402453223,1768680639713,-706.13735223,0.00015342,2]
[402453225,1768680639724,-623.55526284,0.00015342,2]
[402453226,1768680639734,-2000.0,0.00015342,2]
[402453229,1768680639745,-2000.0,0.00015342,2]
[402453230,1768680639756,-557.58802033,0.00015375,2]
[402453233,1768680639766,-2500.0,0.00015464,2]
[402453235,1768680639777,-1000.0,0.00015464,2]
[402453237,1768680639786,-1041.66666667,0.00015693,2]
[402453239,1768680639796,-448.75321454,0.00015712,2]
[402453241,1768680639805,-1203.86573033,0.00015864,2]
[402453242,1768680639815,-2500.0,0.0001589,2]
[402453244,1768680639827,-500.55,0.0001599,2]
[402453246,1768680639837,-3000.0,0.00016,2]
[402453248,1768680639847,-3000.0,0.0001601,2]
[402453250,1768680639856,-500.0,0.00016012,2]
[402453252,1768680639867,-3000.0,0.0001602,2]
[402453254,1768680639876,-3000.0,0.0001603,2]
[402453256,1768680639885,-3000.0,0.0001604,2]
[402453258,1768680639897,-3000.0,0.0001605,2]
[402453260,1768680639907,-3000.0,0.0001606,2]
[402453262,1768680639917,-3000.0,0.0001607,2]
[402453264,1768680639927,-3000.0,0.0001608,2]
[402453266,1768680639936,-3000.0,0.0001609,2]
[402453268,1768680639946,-3000.0,0.000161,2]
[402453270,1768680639955,-3000.0,0.0001611,2]
[402453272,1768680639964,-3000.0,0.0001612,2]
[402453273,1768680639974,-500.0,0.0001612,2]
[402453275,1768680639983,-3000.0,0.0001613,2]
[402453277,1768680639993,-3000.0,0.0001614,2]
[402453279,1768680640002,-3000.0,0.0001615,2]
[402453281,1768680640012,-3000.0,0.0001616,2]
[402453283,1768680640021,-3000.0,0.0001617,2]
[402453285,1768680640031,-3000.0,0.0001618,2]
[402453287,1768680640040,-3000.0,0.0001619,2]
[402453289,1768680640050,-3000.0,0.000162,2]
[402453291,1768680640059,-3000.0,0.0001621,2]
[402453293,1768680640068,-3000.0,0.0001622,2]
[402453295,1768680640078,-3000.0,0.0001623,2]
[402453297,1768680640087,-3000.0,0.0001624,2]
[402453299,1768680640097,-3000.0,0.0001625,2]
[402453302,1768680640107,-3000.0,0.0001626,2]
[402453305,1768680640116,-3000.0,0.0001627,2]
[402453307,1768680640127,-3000.0,0.0001628,2]
[402453309,1768680640136,-30000.0,0.00016287,2]
[402453311,1768680640146,-2000.0,0.00016287,2]
[402453313,1768680640155,-2000.0,0.00016287,2]
[402453315,1768680640165,-151.0,0.00016287,2]
[402453317,1768680640175,-151.0,0.00016287,2]
[402453319,1768680640185,-445.202766,0.00016287,2]
[402453321,1768680640194,-2000.0,0.00016287,2]
[402453323,1768680640204,-151.0,0.00016287,2]
[402453325,1768680640214,-2000.0,0.00016287,2]
[402453327,1768680640224,-201.18700456,0.00016287,2]
[402453329,1768680640234,-2000.0,0.00016287,2]
[402453331,1768680640244,-300.73,0.00016287,2]
[402453333,1768680640253,-2000.0,0.00016287,2]
[402453335,1768680640263,-2000.0,0.00016287,2]
[402453337,1768680640273,-2000.0,0.00016287,2]
[402453339,1768680640282,-2000.0,0.00016287,2]
[402453341,1768680640291,-1957.856,0.00016287,2]
[402453343,1768680640301,-2000.0,0.00016287,2]
[402453345,1768680640310,-2000.0,0.00016287,2]
[402453346,1768680640319,-2000.0,0.00016287,2]
[402453348,1768680640329,-2000.0,0.00016287,2]
[402453350,1768680640339,-500.0,0.00016287,2]
[402453352,1768680640348,-2000.0,0.00016287,2]
[402453354,1768680640359,-500.0,0.00016287,2]
[402453356,1768680640369,-250.0,0.00016287,2]
[402453358,1768680640378,-343.03408281,0.00016287,2]
[402453359,1768680640388,-250.0,0.00016287,2]
[402453361,1768680640397,-500.0,0.00016287,2]
[402453363,1768680640407,-250.0,0.00016287,2]
[402453365,1768680640416,-500.0,0.00016287,2]
[402453367,1768680640425,-250.0,0.00016287,2]
[402453369,1768680640436,-151.0,0.00016287,2]
[402453371,1768680640446,-500.0,0.00016287,2]
[402453373,1768680640456,-500.0,0.00016287,2]
[402453375,1768680640465,-151.0,0.00016287,2]
[402453377,1768680640475,-500.0,0.00016287,2]
[402453379,1768680640484,-2000.0,0.00016287,2]
[402453381,1768680640494,-500.0,0.00016287,2]
[402453383,1768680640503,-2000.0,0.00016287,2]
[402453385,1768680640512,-500.0,0.00016287,2]
[402453387,1768680640523,-2150.738,0.00016287,2]
[402453389,1768680640532,-500.0,0.00016287,2]
[402453391,1768680640542,-500.0,0.00016287,2]
[402453393,1768680640551,-500.0,0.00016287,2]
[402453395,1768680640562,-500.0,0.00016287,2]
[402453397,1768680640571,-500.0,0.00016287,2]
[402453399,1768680640581,-500.0,0.00016287,2]
[402453401,1768680640590,-500.0,0.00016287,2]
[402453403,1768680640599,-162.380719,0.00016287,2]
[402453405,1768680640609,-500.0,0.00016287,2]
[402453407,1768680640619,-168.3888056,0.00016287,2]
[402453409,1768680640629,-500.0,0.00016287,2]
[402453411,1768680640640,-174.61919141,0.00016287,2]
[402453413,1768680640649,-181.08010149,0.00016287,2]
[402453415,1768680640659,-187.78006525,0.00016287,2]
[402453417,1768680640668,-194.72792766,0.00016287,2]
[402453419,1768680640677,-201.93286099,0.00016287,2]
[402453421,1768680640686,-209.40437684,0.00016287,2]
[402453423,1768680640695,-217.15233878,0.00016287,2]
[402453425,1768680640705,-225.18697532,0.00016287,2]
[402453427,1768680640714,-233.51889341,0.00016287,2]
[402453429,1768680640724,-242.15909246,0.00016287,2]
[402453431,1768680640733,-251.11897888,0.00016287,2]
[402453433,1768680640743,-260.4103811,0.00016287,2]
[402453434,1768680640753,-270.0455652,0.00016287,2]
[402453436,1768680640763,-280.03725112,0.00016287,2]
[402453438,1768680640772,-290.39862941,0.00016287,2]
[402453441,1768680640782,-3000.0,0.0001629,2]
[402453443,1768680640791,-3000.0,0.000163,2]
[402453445,1768680640801,-3000.0,0.0001631,2]
[402453447,1768680640811,-3000.0,0.0001632,2]
[402453449,1768680640823,-3000.0,0.0001633,2]
[402453451,1768680640837,-3000.0,0.0001634,2]
[402453453,1768680640847,-2030.296672,0.00016342,2]
[402453455,1768680640856,-3000.0,0.0001635,2]
[402453457,1768680640868,-3000.0,0.0001636,2]
[402453459,1768680640878,-3000.0,0.0001637,2]
[402453461,1768680640888,-3000.0,0.0001638,2]
[402453463,1768680640898,-3000.0,0.0001639,2]
[402453465,1768680640907,-2105.41764886,0.00016397,2]
[402453467,1768680640917,-3000.0,0.000164,2]
[402453469,1768680640926,-3000.0,0.0001641,2]
[402453471,1768680640936,-3000.0,0.0001642,2]
[402453473,1768680640945,-3000.0,0.0001643,2]
[402453475,1768680640955,-500.0,0.00016438,3]
[402453477,1768680640965,-500.0,0.00016438,3]
[402453479,1768680640975,-590.40738298,0.00016438,3]
[402453481,1768680640984,-500.0,0.00016438,3]
[402453483,1768680640994,-161.63217718,0.00016438,3]
[402453485,1768680641004,-500.0,0.00016438,3]
[402453487,1768680641014,-500.0,0.00016438,3]
[402453489,1768680641023,-1000.0,0.00016438,2]
[402453491,1768680641034,-702.73,0.00016438,3]
[402453492,1768680641044,-500.0,0.00016438,3]
[402453495,1768680641055,-500.0,0.00016438,3]
[402453496,1768680641066,-500.0,0.00016438,3]
[402453498,1768680641076,-500.0,0.00016438,3]
[402453501,1768680641086,-500.0,0.00016438,3]
[402453503,1768680641097,-500.0,0.00016438,3]
[402453504,1768680641107,-620.31508398,0.00016438,3]
[402453506,1768680641118,-500.0,0.00016438,3]
[402453509,1768680641128,-901.49,0.00016438,3]
[402453511,1768680641139,-500.0,0.00016438,3]
[402453512,1768680641150,-500.0,0.00016438,3]
[402453515,1768680641160,-500.0,0.00016438,3]
[402453516,1768680641171,-500.0,0.00016438,3]
[402453519,1768680641181,-500.0,0.00016438,3]
[402453520,1768680641192,-500.0,0.00016438,3]
[402453522,1768680641201,-500.0,0.00016438,3]
[402453524,1768680641211,-500.0,0.00016438,3]
[402453526,1768680641221,-500.0,0.00016438,3]
[402453528,1768680641230,-578.0,0.00016438,3]
[402453530,1768680641240,-542.82,0.00016438,3]
[402453532,1768680641252,-500.0,0.00016438,3]
[402453534,1768680641264,-574.11,0.00016438,3]
[402453537,1768680641275,-691.15,0.00016438,3]
[402453538,1768680641285,-1047.7,0.00016438,3]
[402453540,1768680641294,-500.0,0.00016438,3]
[402453542,1768680641305,-500.0,0.00016438,3]
[402453544,1768680641314,-574.969696,0.00016438,3]
[402453546,1768680641324,-500.0,0.00016438,3]
[402453548,1768680641334,-500.0,0.00016438,3]
[402453550,1768680641344,-216.1398381,0.00016438,3]
[402453552,1768680641353,-500.0,0.00016438,3]
[402453554,1768680641363,-500.0,0.00016438,3]
[402453556,1768680641372,-500.0,0.00016438,3]
[402453558,1768680641384,-500.0,0.00016438,3]
[402453560,1768680641394,-500.0,0.00016438,3]
[402453562,1768680641403,-417.85698666,0.00016438,3]
[402453564,1768680641412,-500.0,0.00016438,3]
[402453566,1768680641422,-500.0,0.00016438,3]
[402453568,1768680641432,-500.0,0.00016438,3]
[402453570,1768680641442,-500.0,0.00016438,3]
[402453572,1768680641452,-500.0,0.00016438,3]
[402453574,1768680641462,-716.8,0.00016438,3]
[402453576,1768680641472,-500.0,0.00016438,3]
[402453578,1768680641481,-500.0,0.00016438,3]
[402453580,1768680641490,-559.01,0.00016438,3]
[402453582,1768680641500,-605.0,0.00016438,3]
[402453584,1768680641510,-500.0,0.00016438,3]
[402453586,1768680641525,-575.88539769,0.00016438,3]
[402453588,1768680641545,-500.0,0.00016438,3]
[402453590,1768680641558,-500.0,0.00016438,3]
[402453592,1768680641567,-500.0,0.00016438,3]
[402453594,1768680641577,-548.05,0.00016438,3]
[402453596,1768680641586,-246.89631936,0.00016438,3]
[402453597,1768680641596,-500.0,0.00016438,3]
[402453600,1768680641606,-500.0,0.00016438,3]
[402453601,1768680641616,-500.2501329,0.00016438,3]
[402453603,1768680641625,-500.0,0.00016438,3]
[402453605,1768680641635,-500.0,0.00016438,3]
[402453607,1768680641645,-500.0,0.00016438,3]
[402453609,1768680641656,-946.33,0.00016438,3]
[402453611,1768680641666,-500.0,0.00016438,3]
[402453614,1768680641676,-500.0,0.00016438,3]
[402453616,1768680641685,-500.0,0.00016438,3]
[402453617,1768680641695,-668.42,0.00016438,3]
[402453619,1768680641704,-500.0,0.00016438,3]
[402453621,1768680641713,-500.0,0.00016438,3]
[402453623,1768680641722,-500.0,0.00016438,3]
[402453625,1768680641731,-500.0,0.00016438,3]
[402453627,1768680641741,-500.0,0.00016438,3]
[402453629,1768680641750,-502.2,0.00016438,3]
[402453631,1768680641760,-500.0,0.00016438,3]
[402453633,1768680641769,-500.0,0.00016438,3]
[402453635,1768680641779,-500.0,0.00016438,3]
[402453637,1768680641790,-500.0,0.00016438,3]
[402453639,1768680641799,-500.0,0.00016438,3]
[402453641,1768680641809,-500.0,0.00016438,3]
[402453643,1768680641819,-529.4766639,0.00016438,3]
[402453645,1768680641832,-500.0,0.00016438,2]
[402453647,1768680641841,-221.92401246,0.00016438,2]
[402453649,1768680641852,-500.0,0.00016438,3]
[402453651,1768680641861,-500.0,0.00016438,3]
[402453653,1768680641873,-500.0,0.00016438,3]
[402453655,1768680641882,-500.0,0.00016438,3]
[402453657,1768680641894,-1001.13,0.00016438,3]
[402453659,1768680641905,-444.83809808,0.00016438,3]
[402453661,1768680641914,-500.0,0.00016438,3]
[402453663,1768680641924,-500.0,0.00016438,3]
[402453665,1768680641933,-795.63,0.00016438,3]
[402453667,1768680641942,-681.88,0.00016438,3]
[402453669,1768680641952,-610.18,0.00016438,3]
[402453671,1768680641962,-500.0,0.00016438,3]
[402453673,1768680641972,-500.0,0.00016438,3]
[402453675,1768680641981,-919.37,0.00016438,3]
[402453677,1768680641990,-500.0,0.00016438,3]
[402453679,1768680642000,-500.0,0.00016438,3]
[402453681,1768680642009,-500.0,0.00016438,3]
[402453683,1768680642019,-803.45,0.00016438,3]
[402453685,1768680642030,-325.21716664,0.00016438,3]
[402453687,1768680642040,-500.0,0.00016438,3]
[402453689,1768680642048,-1421.56,0.00016438,3]
[402453691,1768680642057,-799.69,0.00016438,3]
[402453693,1768680642066,-500.0,0.00016438,3]
[402453695,1768680642076,-775.52,0.00016438,3]
[402453697,1768680642085,-500.0,0.00016438,3]
[402453699,1768680642095,-500.0,0.00016438,3]
[402453701,1768680642104,-257.23483558,0.00016438,3]
[402453702,1768680642113,-500.0,0.00016438,3]
[402453704,1768680642123,-500.0,0.00016438,3]
[402453706,1768680642133,-500.0,0.00016438,3]
[402453709,1768680642142,-500.0,0.00016438,3]
[402453710,1768680642152,-842.59,0.00016438,3]
[402453712,1768680642162,-500.0,0.00016438,3]
[402453714,1768680642171,-822.16,0.00016438,3]
[402453717,1768680642181,-500.0,0.00016438,3]
[402453718,1768680642190,-500.0,0.00016438,3]
[402453720,1768680642199,-500.0,0.00016438,3]
[402453722,1768680642208,-500.0,0.00016438,3]
[402453724,1768680642218,-524.77564492,0.00016438,3]
[402453726,1768680642227,-500.0,0.00016438,3]
[402453728,1768680642236,-500.0,0.00016438,3]
[402453730,1768680642245,-500.0,0.00016438,3]
[402453731,1768680642255,-500.0,0.00016438,3]
[402453733,1768680642264,-500.0,0.00016438,3]
[402453735,1768680642274,-500.0,0.00016438,3]
[402453737,1768680642283,-500.0,0.00016438,3]
[402453739,1768680642293,-500.0,0.00016438,3]
[402453741,1768680642302,-500.0,0.00016438,3]
[402453743,1768680642312,-500.0,0.00016438,2]
[402453745,1768680642323,-500.0,0.00016438,3]
[402453747,1768680642333,-1077.4,0.00016438,3]
[402453750,1768680642344,-1003.48,0.00016438,3]
[402453751,1768680642354,-806.24,0.00016438,3]
[402453754,1768680642364,-500.0,0.00016438,3]
[402453755,1768680642374,-681.61,0.00016438,3]
[402453757,1768680642383,-500.0,0.00016438,3]
[402453759,1768680642393,-500.0,0.00016438,3]
[402453761,1768680642402,-500.0,0.00016438,3]
[402453763,1768680642412,-500.0,0.00016438,3]
[402453765,1768680642421,-645.22,0.00016438,3]
[402453767,1768680642431,-500.0,0.00016438,3]
[402453769,1768680642440,-1314.52,0.00016438,3]
[402453771,1768680642449,-599.92,0.00016438,3]
[402453773,1768680642459,-641.05,0.00016438,3]
[402453775,1768680642468,-500.0,0.00016438,3]
[402453777,1768680642477,-500.0,0.00016438,3]
[402453779,1768680642486,-500.0,0.00016438,3]
[402453781,1768680642495,-500.0,0.00016438,3]
[402453783,1768680642505,-500.0,0.00016438,3]
[402453785,1768680642514,-500.0,0.00016438,3]
[402453787,1768680642524,-719.55,0.00016438,3]
[402453789,1768680642535,-500.0,0.00016438,3]
[402453791,1768680642544,-1000.0,0.00016438,2]
[402453793,1768680642553,-500.0,0.00016438,3]
[402453795,1768680642563,-500.0,0.00016438,3]
[402453797,1768680642572,-500.0,0.00016438,3]
[402453798,1768680642582,-500.0,0.00016438,3]
[402453800,1768680642592,-500.0,0.00016438,3]
[402453802,1768680642602,-500.0,0.00016438,3]
[402453804,1768680642611,-500.0,0.00016438,3]
[402453806,1768680642621,-500.0,0.00016438,3]
[402453808,1768680642632,-1209.49,0.00016438,3]
[402453810,1768680642642,-955.59,0.00016438,3]
[402453812,1768680642651,-500.0,0.00016438,3]
[402453814,1768680642661,-500.0,0.00016438,3]
[402453816,1768680642671,-500.0,0.00016438,3]
[402453818,1768680642680,-500.0,0.00016438,3]
[402453820,1768680642689,-734.88,0.00016438,3]
[402453822,1768680642699,-566.56,0.00016438,3]
[402453824,1768680642708,-500.0,0.00016438,3]
[402453826,1768680642717,-500.0,0.00016438,3]
[402453828,1768680642726,-500.0,0.00016438,3]
[402453830,1768680642735,-500.0,0.00016438,3]
[402453832,1768680642745,-500.0,0.00016438,3]
[402453834,1768680642754,-566.1,0.00016438,3]
[402453835,1768680642763,-486.76739107,0.00016438,3]
[402453836,1768680642773,-504.62487329,0.00016438,3]
[402453837,1768680642782,-500.0,0.00016438,3]
[402453843,1768680643025,-500.0,0.00016438,3]
[402453845,1768680643035,-500.0,0.00016438,3]
[402453846,1768680643044,-500.0,0.00016438,3]
[402453847,1768680643054,-500.0,0.00016438,3]
[402453848,1768680643063,-500.0,0.00016438,3]
[402453849,1768680643073,-500.0,0.00016438,3]
[402453850,1768680643082,-500.0,0.00016438,3]
[402453851,1768680643091,-500.0,0.00016438,3]
[402453852,1768680643101,-500.0,0.00016438,3]
[402453853,1768680643110,-427.39365242,0.00016438,3]
[402453854,1768680643119,-914.46,0.00016438,3]
[402453855,1768680643128,-500.0,0.00016438,3]
[402453856,1768680643138,-738.38,0.00016438,3]
[402453857,1768680643148,-900.03,0.00016438,3]
[402453858,1768680643156,-500.0,0.00016438,3]
[402453859,1768680643165,-500.0,0.00016438,3]
[402453860,1768680643173,-1099.86,0.00016438,3]
[402453862,1768680643182,-500.0,0.00016438,3]
[402453864,1768680643192,-500.0,0.00016438,3]
[402453866,1768680643201,-500.0,0.00016438,3]
[402453868,1768680643210,-500.0,0.00016438,3]
[402453869,1768680643220,-500.0,0.00016438,3]
[402453871,1768680643231,-500.0,0.00016438,3]
[402453874,1768680643242,-500.0,0.00016438,3]
[402453875,1768680643251,-741.43,0.00016438,3]
[402453878,1768680643261,-579.54,0.00016438,3]
[402453879,1768680643271,-601.47304287,0.00016438,2]
[402453882,1768680643280,-500.0,0.00016438,3]
[402453884,1768680643290,-2403.48627932,0.00016438,2]
[402453886,1768680643299,-500.0,0.00016438,3]
[402453888,1768680643308,-544.37,0.00016438,3]
[402453890,1768680643319,-500.0,0.00016438,3]
[402453892,1768680643329,-500.0,0.00016438,3]
[402453893,1768680643339,-500.0,0.00016438,3]
[402453896,1768680643348,-500.0,0.00016438,3]
[402453897,1768680643357,-500.0,0.00016438,3]
[402453899,1768680643366,-500.0,0.00016438,3]
[402453901,1768680643376,-1135.02,0.00016438,3]
[402453903,1768680643386,-500.0,0.00016438,3]
[402453905,1768680643396,-500.0,0.00016438,3]
[402453907,1768680643405,-500.0,0.00016438,3]
[402453909,1768680643415,-1457.74,0.00016438,3]
[402453911,1768680643424,-500.0,0.00016438,3]
[402453913,1768680643434,-548.89807406,0.00016438,3]
[402453915,1768680643443,-500.0,0.00016438,3]
[402453917,1768680643451,-1206.15,0.00016438,3]
[402453919,1768680643460,-638.0,0.00016438,3]
[402453921,1768680643470,-500.0,0.00016438,3]
[402453922,1768680643479,-561.09,0.00016438,3]
[402453924,1768680643488,-500.0,0.00016438,3]
[402453926,1768680643497,-542.03,0.00016438,3]
[402453928,1768680643506,-500.0,0.00016438,3]
[402453930,1768680643516,-500.0,0.00016438,3]
[402453932,1768680643526,-500.0,0.00016438,3]
[402453934,1768680643536,-500.0,0.00016438,3]
[402453936,1768680643545,-500.0,0.00016438,3]
[402453938,1768680643555,-755.07,0.00016438,3]
[402453940,1768680643564,-500.0,0.00016438,3]
[402453942,1768680643573,-500.0,0.00016438,3]
[402453944,1768680643583,-500.0,0.00016438,3]
[402453946,1768680643593,-500.0,0.00016438,3]
[402453948,1768680643602,-500.0,0.00016438,3]
[402453950,1768680643613,-500.0,0.00016438,3]
[402453952,1768680643622,-500.0,0.00016438,3]
[402453954,1768680643631,-535.77,0.00016438,3]
[402453956,1768680643641,-655.03,0.00016438,3]
[402453958,1768680643650,-500.0,0.00016438,3]
[402453960,1768680643659,-500.0,0.00016438,3]
[402453962,1768680643669,-500.0,0.00016438,3]
[402453964,1768680643678,-584.87,0.00016438,3]
[402453965,1768680643688,-500.0,0.00016438,3]
[402453967,1768680643697,-502.72122114,0.00016438,3]
[402453969,1768680643706,-500.0,0.00016438,3]
[402453971,1768680643716,-500.0,0.00016438,3]
[402453973,1768680643725,-500.0,0.00016438,3]